Cogmind - Beta 14 @@@ ROGUE MODE // 2024.08.31 @ 11:21:40 Player: huluvu Result: Destroyed by Y-54 Guardian with Flak Gun Performance ------------- Evolutions (3) 1500 Regions Visited (4) 800 Robots Destroyed (39) 195 Value Destroyed (1458) 1458 Prototype IDs (2) 40 Alien Tech Used (0) 0 Bonus (0) 0 TOTAL SCORE: 3993 Bonus ------- None Cogmind --------- Core Integrity 0/700 Matter 202/300 Energy 427/430 System Corruption 0% Temperature Cool (7) Movement Treading (225) Ox1 Location -7/Factory Parts ------- > --- POWER (4) -------- Light Deuterium Engine Improved Deuterium Engine Micro Nuclear Core Micro Nuclear Core > --- PROPULSION (3) --- Advanced Treads > --- UTILITY (4) ------ Trap Scanner Advanced ECM Suite System Restoration Module > --- WEAPON (2) ------- Gatling Laser Flak Gun > --- INVENTORY (5) ---- Improved Carbon-fiber Leg Lightning Gun Plasma Cannon Plasma Cannon Flak Cannon Peak State ------------ > --- POWER ------------ Light Deuterium Engine Improved Deuterium Engine Micro Nuclear Core Micro Nuclear Core > --- PROPULSION ------- Light Treads Armored Treads Advanced Treads > --- UTILITY ---------- Improved Heat Sink Advanced ECM Suite Light Armor Plating Shock Absorption System > --- WEAPON ----------- Gatling Laser Heavy Ion Cannon > --- INVENTORY -------- Trap Scanner System Restoration Module Flak Gun [Rating: 43] Favorites ----------- Power Light Ion Engine Engine Light Ion Engine Power Core Micro Nuclear Core Propulsion Light Treads Treads Light Treads Leg Aluminum Leg Hover Unit Gravmag System Utility Small Storage Unit Device Sensor Array Storage Small Storage Unit Processor Signal Interpreter Protection Core Shielding Weapon Medium Laser Energy Gun Medium Laser Energy Cannon Advanced Beam Cannon Ballistic Gun Autogun Ballistic Cannon Assault Cannon Launcher Grenade Launcher Build | -11 -10 -9 -8 -7 ------- Run | Yrd Mat Mat Mat Fac Slots Evolved 6 | . . 2 2 2 Power 3 | . . 1 1 1 Propulsion 1 | . . . 1 . Utility 2 | . . 1 . 1 Weapon . | . . . . . Parts Attached 66 | 6 1 17 5 37 Power 13 | 1 . 5 1 6 Engine 9 | 1 . 5 . 3 Core 4 | . . . 1 3 Reactor . | . . . . . Propulsion 14 | 2 . 4 1 7 Treads 10 | 2 . 4 1 3 Leg 3 | . . . . 3 Wheel . | . . . . . Hover 1 | . . . . 1 Flight . | . . . . . Utility 21 | 1 1 2 2 15 Device 14 | . . 1 1 12 Storage 1 | 1 . . . . Processor 3 | . . 1 1 1 Hackware . | . . . . . Protection 3 | . 1 . . 2 Artifact . | . . . . . Weapon 18 | 2 . 6 1 9 Energy Gun 4 | 2 . 1 . 1 Energy Cannon 3 | . . 1 1 1 Ballistic Gun 6 | . . 3 . 3 Ballistic Cannon 4 | . . . . 4 Launcher 1 | . . 1 . . Special Weapon . | . . . . . Impact Weapon . | . . . . . Slashing Weapon . | . . . . . Piercing Weapon . | . . . . . Special Melee Weapon . | . . . . . Unidentified Prototypes 2 | . . 2 . . Parts Lost 36 | . . 8 2 26 Power 8 | . . 4 1 3 Propulsion 8 | . . 1 1 6 Utility 9 | . . . . 9 Weapon 11 | . . 3 . 8 Highest Loss Streak 6 | . . 4 2 6 To Critical Strikes . | . . . . . Average Slot Usage (%) 78 | . 90 87 91 65 Engine 10 | . 14 14 16 5 Core 3 | . . . 3 6 Treads 16 | . 28 20 26 8 Leg 1 | . . . . 2 Device 10 | . . 8 6 15 Storage 6 | . 14 11 9 1 Processor 5 | . . 8 11 4 Protection 3 | . 5 2 . 4 Energy Gun 6 | . 28 9 . 3 Energy Cannon 4 | . . 1 12 4 Ballistic Gun 4 | . . 9 6 1 Ballistic Cannon 1 | . . . . 3 Peak Build Rating 43 | 6 7 16 25 43 Average Rating 17 | 4 6 9 19 25 On Entrance 9 | . 6 7 16 18 Naked Turns . | . . . . . Heaviest Build 49 | 14 15 23 31 49 Greatest Support 69 | 40 40 46 69 62 Greatest Overweight (x) 7 | . . . . 7 Average Overweight (x) . | . . . . . Largest Inventory Capacity 8 | 8 8 8 8 8 Average Capacity 6 | 7 8 8 8 5 Most Carried 8 | 5 5 8 8 7 Average Carried 4 | 2 3 6 6 3 Final Capacity 8 | 8 8 8 8 5 Final Carried 8 | 3 4 7 8 5 Class Distribution -------------------- 67% | Mutant 25% | Scavenger-Mutant 7% | Generator-Mutant Dominant Class ---------------- Mutant | -10/Materials Mutant | -9/Materials Mutant | -8/Materials Mutant | -7/Factory Resources | -11 -10 -9 -8 -7 ----------- Run | Yrd Mat Mat Mat Fac Matter Collected 1099 | 179 91 298 50 481 Remotely . | . . . . . Salvage Created 1356 | . 99 686 83 488 Parts 77 | . 4 39 8 26 Haulers Intercepted . | . . . . . Recyclers Shooed 1 | . . . . 1 Parts Field Recycled . | . . . . . Retrieved Matter . | . . . . . Parts Self-Destructed . | . . . . . Prevented . | . . . . . Kills | -11 -10 -9 -8 -7 ------- Run | Yrd Mat Mat Mat Fac Combat Hostiles Destroyed 34 | . 2 16 3 13 Guns 12 | . 2 6 . 4 Cannons 13 | . . 5 3 5 AOE 8 | . . 4 . 4 Classes Destroyed 8 | . 1 5 1 1 Carrier 1 | . . 1 . . Watcher 4 | . . 2 . 2 Swarmer 9 | . . 4 2 3 Grunt 17 | . 2 8 . 7 Brawler 1 | . . 1 . . Sentry 4 | . . 3 . 1 Hunter 1 | . . . 1 . Programmer 2 | . . . . 2 Best Kill Streak 5 | . 2 5 2 3 Combat Bots Only 4 | . 2 4 2 3 Max Kills in Single Turn 3 | . 1 2 1 3 Gunslinging . | . . . . . Exploded 3 | . . 2 . 3 Melee . | . . . . . Uniques/NPCs Destroyed . | . . . . . Combat | -11 -10 -9 -8 -7 -------- Run | Yrd Mat Mat Mat Fac Hostile Shots Fired 608 | . 12 99 97 400 Missed 183 | . 1 24 21 137 Damage Taken 5115 | . 154 857 950 3154 Core 942 | . 20 82 135 705 Absorbed by Shields . | . . . . . Redirected to Shielding 60 | . 4 . . 56 Core Remaining (%) 86 | 100 92 79 75 . Volleys Fired 136 | . 6 53 14 63 Largest 2 | . 2 2 2 2 Hottest 145 | . 90 73 136 145 Shots Fired 203 | . 12 84 21 86 Gun 108 | . 12 62 . 34 Cannon 91 | . . 18 21 52 Launcher 4 | . . 4 . . Special . | . . . . . Kinetic 66 | . . 32 . 34 Thermal 127 | . 6 48 21 52 Explosive 4 | . . 4 . . Electromagnetic 6 | . 6 . . . Robot Hit Streak 13 | . 10 13 3 7 Robot Miss Streak 6 | . . 3 3 6 Penetration Max . | . . . . . Secondary Targets 1 | . . 1 . . Max Gunslinging Chain 1 | . . 1 . . Shots Hit Robots 119 | . 10 56 9 44 Core Hits 65 | . 5 26 5 29 Critical Kills 2 | . . 2 . . Critical Parts Destroyed 1 | . . . . 1 Critical Strikes 5 | . . 4 . 1 Burn 2 | . . 2 . . Meltdown 2 | . . 2 . . Destroy 1 | . . . . 1 Melee Attacks . | . . . . . Impact . | . . . . . Slashing . | . . . . . Piercing . | . . . . . Sneak Attacks . | . . . . . Combat Hostiles . | . . . . . Follow-up Attacks . | . . . . . Damage Inflicted 2879 | . 135 1028 181 1535 Guns 1113 | . 135 541 . 437 Cannons 1053 | . . 222 181 650 Explosions 702 | . . 265 . 437 Melee . | . . . . . Ramming 11 | . . . . 11 Kinetic 729 | . . 326 . 403 Thermal 1651 | . 51 437 181 982 Explosive 229 | . . 229 . . Electromagnetic 259 | . 84 36 . 139 Impact . | . . . . . Slashing . | . . . . . Piercing . | . . . . . Highest Corruption 1 | . . . . 1 Average Corruption 1 | . . . . 1 Corruption Purged 1 | . . . . 1 Corruption Blocked . | . . . . . Overload Shots . | . . . . . Overflow Damage 142 | . . 10 . 132 Projectiles 17 | . . 10 . 7 Explosions 125 | . . . . 125 Melee . | . . . . . Knockbacks 7 | . . . . 7 Impact . | . . . . . Kinetic 5 | . . . . 5 Secondary 2 | . . . . 2 Self-Inflicted Damage 202 | . . 64 . 138 Shots 4 | . . 2 . 2 Rammed 1 | . . 1 . . Targets Rammed 2 | . . 1 . 1 Kicked . | . . . . . Crushed 1 | . . . . 1 Highest Temperature 637 | . 240 306 496 637 Average Temperature 163 | . 122 93 204 203 Received Heat Transfer 1524 | . 90 243 198 993 Effects 36 | . . . 7 29 Shutdowns 18 | . . . 3 15 Energy Bleed 3 | . . . . 3 Interference 2 | . . . . 2 Matter Decay 7 | . . . 3 4 Short Circuit 2 | . . . 1 1 Damage (minor) 4 | . . . . 4 Siege Activations . | . . . . . Robots Corrupted . | . . . . . Combat Hostiles . | . . . . . Parts Fried 1 | . . . . 1 Impact Corruptions 1 | . . . . 1 Robots Melted 2 | . . 2 . . Combat Hostiles 1 | . . 1 . . Parts Melted 2 | . . 2 . . Heat Transferred 3046 | . 148 1184 333 1381 Parts Sabotaged . | . . . . . Parts Stolen . | . . . . . Parts Stripped . | . . . . . Power Chain Reactions . | . . . . . Alert | -11 -10 -9 -8 -7 ------- Run | Yrd Mat Mat Mat Fac Peak Influence 284 | . 53 243 232 284 Initial 102 | . . 22 102 95 Average 89 | . 14 81 132 106 Maximum Alert Level 1 | . . 1 1 1 Low Security (%) 90 | 100 100 96 78 85 Level 1 9 | . . 3 21 14 Level 2 . | . . . . . Level 3 . | . . . . . Level 4 . | . . . . . Level 5 . | . . . . . High Security . | . . . . . Max Security . | . . . . . Squads Dispatched 9 | . . 3 2 4 Investigation 3 | . . 1 . 2 Extermination 2 | . . . . 2 Reinforcement 3 | . . 2 1 . Assault . | . . . . . Garrison 1 | . . . 1 . Intercept . | . . . . . Searches Triggered . | . . . . . Construction Impeded . | . . . . . Haulers Reinforced . | . . . . . Active Scanning Responses . | . . . . . Cargo Convoy Interrupts . | . . . . . Stealth | -11 -10 -9 -8 -7 --------- Run | Yrd Mat Mat Mat Fac Distress Signals 2 | . . 1 1 . Communications Jammed . | . . . . . Distress Signals . | . . . . . Times Spotted 54 | . 3 20 9 22 Peak Tracking Total 7 | . 2 4 7 4 Tactical Retreats 1 | . . . . 1 Traps | -11 -10 -9 -8 -7 ------- Run | Yrd Mat Mat Mat Fac Traps Triggered 1 | . . 1 . . Indirectly . | . . . . . Trap Hack Attempts . | . . . . . Triggered . | . . . . . Disarmed . | . . . . . Reprogrammed . | . . . . . Reused . | . . . . . Traps Extracted . | . . . . . Installed . | . . . . . Triggered . | . . . . . Machines | -11 -10 -9 -8 -7 ---------- Run | Yrd Mat Mat Mat Fac Machines Disabled 11 | . . 1 . 10 Max in Single Turn 6 | . . 1 . 6 Machines Repaired . | . . . . . Machines Dismantled . | . . . . . Machines Sabotaged . | . . . . . Overloaded Fab Kills . | . . . . . Hacking | -11 -10 -9 -8 -7 --------- Run | Yrd Mat Mat Mat Fac Machines Accessed 8 | . 1 3 1 3 Terminals 5 | . 1 3 . 1 Fabricators 1 | . . . . 1 Repair Stations . | . . . . . Recycling Units . | . . . . . Scanalyzers 2 | . . . 1 1 Garrison Access . | . . . . . Total Hacks 21 | . 2 8 3 8 Successful 18 | . 2 5 3 8 Failed 3 | . . 3 . . Catastrophic . | . . . . . Database Lockouts . | . . . . . Manual . | . . . . . Terminals 11 | . 2 8 . 1 Fabricators 2 | . . . . 2 Repair Stations . | . . . . . Recycling Units . | . . . . . Scanalyzers 8 | . . . 3 5 Garrison Access . | . . . . . Terminal Hacks 8 | . 2 5 . 1 Record 5 | . 2 3 . . Open DSF 1 | . . . . 1 Alert Level 1 | . . 1 . . Zone Layout 1 | . . 1 . . Fabricator Hacks 2 | . . . . 2 Load Schematic 1 | . . . . 1 Build 1 | . . . . 1 Repair Station Hacks . | . . . . . Recycling Unit Hacks . | . . . . . Scanalyzer 8 | . . . 3 5 Insert Component 4 | . . . 1 3 Analyze 4 | . . . 2 2 Garrison Access Hacks . | . . . . . Unauthorized Hacks . | . . . . . Terminals . | . . . . . Fabricators . | . . . . . Repair Stations . | . . . . . Recycling Units . | . . . . . Scanalyzers . | . . . . . Garrison Access . | . . . . . Data Cores Recovered . | . . . . . Used . | . . . . . Hacking Detections 5 | . . 3 . 2 Full Trace Events 3 | . . 1 . 2 Feedback Events . | . . . . . Feedback Blocked . | . . . . . Robot Schematics Acquired . | . . . . . Robots Built . | . . . . . Authchips . | . . . . . Time . | . . . . . Total Robot Build Rating . | . . . . . Part Schematics Acquired 3 | . . . 1 2 Parts Built 2 | . . . . 2 Authchips . | . . . . . Time 62 | . . . . 62 Total Part Build Rating 4 | . . . . 4 Parts Repaired . | . . . . . Time . | . . . . . Parts Recycled . | . . . . . Recycled Matter . | . . . . . Retrieved Matter . | . . . . . Retrieved Components . | . . . . . Parts Scanalyzed 3 | . . . 1 2 Part Schematics Acquired 3 | . . . 1 2 Parts Damaged . | . . . . . Bothacking | -11 -10 -9 -8 -7 ------------ Run | Yrd Mat Mat Mat Fac Used RIF Installer . | . . . . . Robots Hacked . | . . . . . Non-combat . | . . . . . Combat . | . . . . . Robot Hacks Applied . | . . . . . Relay Couplers Released . | . . . . . Fabnet Peak Effective % . | . . . . . Robots Rewired . | . . . . . Allies Hacked . | . . . . . Hacks Repelled . | . . . . . Allies | -11 -10 -9 -8 -7 -------- Run | Yrd Mat Mat Mat Fac Total Allies . | . . . . . Largest Group . | . . . . . Highest-Rated Group . | . . . . . Highest-Rated Ally . | . . . . . Total Orders . | . . . . . Ally Attacks . | . . . . . Total Damage . | . . . . . Kills . | . . . . . Allies Corrupted . | . . . . . Allies Melted . | . . . . . Intel | -11 -10 -9 -8 -7 ------- Run | Yrd Mat Mat Mat Fac Robot Analysis Total . | . . . . . Derelict Logs Recovered . | . . . . . Drone Launches . | . . . . . Drone Recoveries . | . . . . . Exploration | -11 -10 -9 -8 -7 ------------- Run | Yrd Mat Mat Mat Fac Turns Passed 3078 | 138 218 1073 306 1343 Spaces Moved 1603 | 95 124 542 154 688 Core 64 | 27 . . . 37 Treads 1228 | 68 124 542 154 340 Legs 160 | . . . . 160 Wheels . | . . . . . Hover 151 | . . . . 151 Flight . | . . . . . Fastest Speed 50 | 50 160 160 160 60 Average Speed 154 | 128 160 160 160 150 Slowest Speed 400 | 160 160 160 160 400 Overloaded Moves . | . . . . . Propulsion Burnouts . | . . . . . Robots Hopped . | . . . . . Cave-ins Triggered . | . . . . . Exploration Rate (%) 20 | 7 25 37 18 17 Regions Visited 4 Branch Regions . Pre-discovered Areas . | . . . . . Known Exits Taken 2 | . . 1 1 . Unknown Exits Taken 2 | 1 1 . . . Scrap Searched . | . . . . . Spaces Dug 4 | . . 4 . . Terrain Destroyed 85 | . . 28 . 57 Melee . | . . . . . Projectile 3 | . . . . 3 AOE 82 | . . 28 . 54 Terrain Rammed . | . . . . . Walls Destroyed . | . . . . . Machines Disabled . | . . . . . Actions | -11 -10 -9 -8 -7 --------- Run | Yrd Mat Mat Mat Fac Total 2010 | 111 132 668 192 907 Wait 124 | . . 36 14 74 Move 1599 | 94 123 541 153 688 Hop . | . . . . . Pick Up 68 | 10 2 17 4 35 Fast Attach . | . . . . . Attach 50 | 6 1 11 2 30 Detach . | . . . . . Swap 16 | . . 6 3 7 Drop 15 | 1 . 3 2 9 Fire 136 | . 6 53 14 63 Melee . | . . . . . Ram . | . . . . . Kick . | . . . . . Crush 2 | . . 1 . 1 Escape Stasis . | . . . . . Rewire . | . . . . . Trap . | . . . . . Miscellaneous . | . . . . . Route ------- -11/Scrapyard -10/Materials -9/Materials -8/Materials -7/Factory History --------- Turn | Location | Event 7 | -11/Scrapyard | Discovered new exit (range 16) 139 | -11/Scrapyard | Entered Materials 311 | -10/Materials | Build established: Mutant 343 | -10/Materials | Discovered new exit (range 4) 357 | -10/Materials | Entered another Materials area 357 | -9/Materials | Evolved 2 slots: Power x1, Utility x1 1164 | -9/Materials | Lost 4 parts (1p1n2w) 1168 | -9/Materials | Build established: Scavenger-Mutant 1414 | -9/Materials | Discovered new exit (range 9) 1427 | -9/Materials | Identified exit to Materials 1430 | -9/Materials | Entered another Materials area 1430 | -8/Materials | Evolved 2 slots: Power x1, Propulsion x1 1508 | -8/Materials | Build established: Mutant 1691 | -8/Materials | Garrison activated, responded to threat 1721 | -8/Materials | Discovered new exit (range 10) 1734 | -8/Materials | Identified exit to Factory 1736 | -8/Materials | Entered Factory 1736 | -7/Factory | Evolved 2 slots: Power x1, Utility x1 1847 | -7/Factory | Fabricated Imp. Targeting Computer (x2) 1928 | -7/Factory | Lost 6 parts (1p1n1u3w) 2065 | -7/Factory | Core integrity fell below 50% 2102 | -7/Factory | Lost 6 parts (1p3u2w) 2448 | -7/Factory | Core integrity fell below 20% 2458 | -7/Factory | Lost 3 parts (1p1u1w) 2740 | -7/Factory | Build established: Scavenger-Mutant 2867 | -7/Factory | Lost 4 parts (1n2u1w) 3079 | -7/Factory | Destroyed by Y-54 Guardian with Flak Gun Last Messages --------------- 02864_ K-01 Serf collects debris. 02866_ Acquired 35 matter. 02867_ K-01 Serf collects debris. 02868_ Acquired 19 matter. 02871_ K-01 Serf collects debris. 02896_ Connecting with DSF Access... 02896_ Dropped Broken Imp. Heat Sink. 02929_ K-01 Serf cleans the Nuclear Reactor. 02929_ Acquired Flak Cannon. 02963_ Acquired Imp. Carbon-fiber Leg. 02986_ ALERT: Rogue bot located, Programmers report to Factory Zone 3T. 03032_ System Restoration Module purges 1% system corruption (0%). 03032_ Arm. Treads destroyed. 03032_ P-60 Hacker destroyed. 03035_ Acquired 27 matter. 03047_ Acquired Lightning Gun. 03059_ Acquired Plasma Cannon. [Achievement: First Step to Greatness] Map ----- +----------------------------------------------------+ | | | | | | | | | | | | | | | | | ?????????????????????????????????????????????????? | | ?????????????????????????????????????????????????? | | ?????????????????????????????????????????????????? | | ????????????????????????????????########?????????? | | ????????????????????????????##### #?????????? | | ????????????????????????#+#?# + #?????????? | | ???????????????????????? ?# ### ########### | | ???????????????????????? ?# #?# # | | ???????????????????????? Y ?# #?# # """"" | | ???????????????????????? ?# #?# # """"" | | ???????????????????????? ?# ########+# """ | | ????????????????????????# #?# + | | ????????????????????????# #?####### # """"" | | ??????????????####??????# #??###### # """"" | | ??????????????# ????# #??# + + """ | | ??????????????# ??# #??# # # = | | ??????????????# # #### !! # # | | ??????????????# /@ + ! # # | | ??????????????# #### # !] # # | | ??????????????# ?????# ######+# ###+####### | | ??????????????# ???????# #??????# | | ??????????????# ?????????# #??????# | | ??????????????##???????????# #??????# ^ | | ???????????????????????????# #??????# | | ???????????????????????????# #??????# """ """ """ | | ???????????????????????????# #??????# """ """ """ | | ???????????????????????????? ???????# """ """ """ | | ???????????????????????????? ???????# | | ???????????????????????????? ???????# """ """ """ | | ???????????????????????????? ???????# """ """ """ | | ???????????????????????????? ???????# """ """ """ | | ???????????????????????????? ???????# | | ???????????????????????????? ???????+ """ """ """ | | ????????????????????????????????????# "?" """ """ | | ????????????????????????????????????# ?"" """ """ | | ????????????????????????????????????? | | ?????????????????????????????????????? | | ?????????????????????????????????????? ##### | | ????????????????????????????????????????????# | | ????????????????????????????????????????????# | | ????????????????????????????????????????????# | | ????????????????????????????????????????????###### | +----------------------------------------------------+ Best States ------------- Heat Dissipation 48 Energy Generation 45 Energy Capacity 430 Matter Stores 300 Matter Capacity 300 Sight Range 16 Robot Scan Range 14 Terrain Scan Density 10 ECM Strength 2 Armor Coverage 150 Resistance: EX 25 Core Shielding 20 Evasion (%) 55 Targeting Accuracy 6 Recoil Reduction 3 Matter Filtering 30 Item Schematics ----------------- Imp. Targeting Computer | -8/Materials | Scanalyzed Flak Gun | -7/Factory | Scanalyzed Trap Scanner | -7/Factory | Scanalyzed Robot Schematics ------------------ None Fabricated ------------ Imp. Targeting Computer | x2 | -7/Factory Alien Tech Used ----------------- None Achievements -------------- Crack Shot First Step to Greatness It's Just You Just What I Needed Made in Tau Ceti IV One Hack Too Far Preemptive Strike Risk Taker Storm Trooper Troublemaker Uninvited Guest Challenges ------------ None Game ------ Seed DisposableColdOptics Manual? 0 Play Time 00:35:00 Cumulative 0.5 hours Start 2024.08.31 @ 10:45:57 End 2024.08.31 @ 11:21:40 Sessions 1 Manual Loads 0 Difficulty Rogue Special Mode None Game No. 1 Rogue 1 Adventurer 0 Explorer 0 Win Type - Total 0 Types 0/0/0/0/0/0/0/0/0 Lore% 0 Gallery% 3 Achievement% 4 Wizard Run 0 Options --------- Layout 1 ASCII 0 Keyboard 0 Movement Arrows Keybinds 0 Fullscreen 1 Font 18/SmallcapsGlow Map View 54x44 Zoom Use 0% Tactical HUD 1 Map Filters NONE Filters NONE Steam 0 RUN: 3aa8869d-c205-49e7-9b67-807a6728b46c